[Event "CCCSA IM Norm C 2019"]
[Site "Charlotte"]
[Date "2019.06.08"]
[Round "6.5"]
[White "Turgut, Aydin"]
[Black "Ludwig, John"]
[Result "1/2-1/2"]
[ECO "A41"]
[WhiteElo "2286"]
[BlackElo "2374"]
[Annotator "NA"]
[PlyCount "101"]
[EventDate "2019.06.05"]
[EventType "tourn"]
[EventCountry "USA"]
[SourceTitle "playchess.com"]
[Source "ChessBase"]
[SourceQuality "1"]
[TimeControl "5400+30"]

1. e4 {[%emt 1:30:30]} d6 {[%emt 1:30:30]} 2. d4 {[%emt 0:00:30]} Nf6 {[%emt 0:00:30]} 3. Nc3 {[%emt 0:00:30]} c6 {[%emt 0:00:30]} 4. Nf3 {[%emt 0:00:30]} Bg4 {[%emt 0:00:30]} 5. h3 {[%emt 0:00:30]} Bh5 {[%emt 0:00:30]} 6. g4 {[%emt 0:00:30]} Bg6 {[%emt 0:00:30]} 7. Qe2 {[%emt 0:00:30]} e6 {[%emt 0:00:30]} 8. h4 {[%emt 0:00:30]} h5 {[%emt 0:00:30]} 9. g5 {[%emt 0:00:30]} Nfd7 {[%emt 0:00:30]} 10. Bh3 {[%emt 0:00:30]} Be7 {[%emt 0:00:30]} 11. O-O {[%emt 0:00:30]} O-O {[%emt 0:00:30]} 12. Ne1 {[%emt 0:00:30]} e5 {[%emt 0:00:30]} 13. f4 {[%emt 0:00:30]} exf4 {[%emt 0:00:30]} 14. Bxf4 {[%emt 0:00:30]} Qb6 {[%emt 0:00:30]} 15. Qe3 {[%emt 0:00:30]} Re8 {[%emt 0:00:30]} 16. Nd3 {[%emt 0:00:30]} Nf8 {[%emt 0:00:30]} 17. Qf2 {[%emt 0:00:30]} Nbd7 {[%emt 0:00:30]} 18. Be3 {[%emt 0:00:30]} d5 {[%emt 0:00:30]} 19. exd5 {[%emt 0:00:30]} Bb4 {[%emt 0:00:30]} 20. dxc6 {[%emt 0:00:30]} Bxc3 {[%emt 0:00:30]} 21. cxb7 {[%emt 0:00:30]} Rad8 {[%emt 0:00:30]} 22. bxc3 {[%emt 0:00:30]} Qxb7 {[%emt 0:00:30]} 23. c4 {[%emt 0:00:30]} Nb6 {[%emt 0:00:30]} 24. Ne5 {[%emt 0:00:30]} Rxe5 {[%emt 0:00:30]} 25. dxe5 {[%emt 0:00:30]} Nxc4 {[%emt 0:00:30]} 26. Bg2 {[%emt 0:00:30]} Qc8 {[%emt 0:00:30]} 27. Rad1 {[%emt 0:00:30]} Rxd1 {[%emt 0:00:30]} 28. Rxd1 {[%emt 0:00:30]} Nxe5 {[%emt 0:00:30]} 29. Bxa7 {[%emt 0:00:30]} Ne6 {[%emt 0:00:30]} 30. Rd2 {[%emt 0:00:30]} Ng4 {[%emt 0:00:30]} 31. Qg3 {[%emt 0:00:30]} Qa6 {[%emt 0:00:30]} 32. Bd4 {[%emt 0:00:30]} Qxa2 {[%emt 0:00:30]} 33. Qb3 {[%emt 0:00:30]} Qa5 {[%emt 0:00:30]} 34. Qc3 {[%emt 0:00:30]} Qb5 {[%emt 0:00:30]} 35. Qb3 {[%emt 0:00:30]} Nxd4 {[%emt 0:00:30]} 36. Rxd4 {[%emt 0:00:30]} Qe5 {[%emt 0:00:30]} 37. Qc3 {[%emt 0:00:30]} Qh2+ {[%emt 0:00:30]} 38. Kf1 Qxh4 {[%emt 0:00:30]} 39. Qd2 {[%emt 0:01:00]} Qg3 {[%emt 0:00:30]} 40. Kg1 {[%emt 0:00:30]} Ne3 {[%emt 0:00:30]} 41. Rd8+ {[%emt 0:00:30]} Kh7 {[%emt 0:00:30]} 42. Re8 {[%emt 0:00:30]} Nxg2 {[%emt 0:00:30]} 43. Qxg2 {[%emt 0:00:30]} Qxg2+ {[%emt 0:00:30]} 44. Kxg2 {[%emt 0:00:30]} Bxc2 {[%emt 0:00:30]} 45. Kg3 {[%emt 0:00:30]} Kg6 {[%emt 0:00:30]} 46. Kh4 {[%emt 0:00:30]} Bf5 {[%emt 0:00:30]} 47. Rh8 {[%emt 0:00:30]} Bg4 {[%emt 0:00:30]} 48. Rf8 {[%emt 0:00:30]} f6 {[%emt 0:00:30]} 49. gxf6 {[%emt 0:00:30]} gxf6 {[%emt 0:00:30]} 50. Ra8 {[%emt 0:00:30]} Kf5 {[%emt 0:00:30]} 51. Ra5+ {[%emt 0:00:30] Ke5} 1/2-1/2

[Event "CCCSA IM Norm C 2019"]
[Site "Charlotte"]
[Date "2019.06.09"]
[Round "7.1"]
[White "Hevia Alejano, Carlos Antonio"]
[Black "Adamson, Robby"]
[Result "1/2-1/2"]
[ECO "A09"]
[WhiteElo "2481"]
[BlackElo "2238"]
[Annotator "RC"]
[PlyCount "156"]
[EventDate "2019.06.05"]
[EventType "tourn"]
[EventCountry "USA"]
[SourceTitle "playchess.com"]
[Source "ChessBase"]
[SourceQuality "1"]
[TimeControl "5400+30"]

1. Nf3 {[%emt 1:30:30]} d5 {[%emt 1:30:30]} 2. c4 {[%emt 0:00:30]} d4 {[%emt 0:00:30]} 3. e3 {[%emt 0:00:30]} Nc6 {[%emt 0:00:30]} 4. d3 {[%emt 0:00:30]} dxe3 {[%emt 0:00:30]} 5. Bxe3 {[%emt 0:00:30]} e5 {[%emt 0:00:30]} 6. Nc3 {[%emt 0:00:30]} Nf6 {[%emt 0:00:30]} 7. d4 {[%emt 0:00:30]} exd4 {[%emt 0:00:30]} 8. Nxd4 {[%emt 0:00:30]} Nxd4 {[%emt 0:00:30]} 9. Qxd4 {[%emt 0:00:30]} Be6 {[%emt 0:00:30]} 10. O-O-O {[%emt 0:00:30]} Qxd4 {[%emt 0:00:30]} 11. Bxd4 {[%emt 0:00:30]} c6 {[%emt 0:00:30]} 12. Bxf6 {[%emt 0:00:30]} gxf6 {[%emt 0:00:30]} 13. Ne4 {[%emt 0:00:30]} f5 {[%emt 0:00:30]} 14. Nd6+ {[%emt 0:00:30]} Bxd6 {[%emt 0:00:30]} 15. Rxd6 {[%emt 0:00:30]} Ke7 {[%emt 0:00:30]} 16. Rd2 {[%emt 0:00:30]} Rad8 {[%emt 0:00:30]} 17. Be2 {[%emt 0:00:30]} Rhg8 {[%emt 0:00:30]} 18. g3 {[%emt 0:00:30]} Kf6 {[%emt 0:00:30]} 19. Rxd8 {[%emt 0:00:30]} Rxd8 {[%emt 0:00:30]} 20. Kc2 {[%emt 0:00:30]} Ke5 {[%emt 0:00:30]} 21. Kc3 {[%emt 0:00:30]} c5 {[%emt 0:00:30]} 22. Re1 {[%emt 0:00:30]} Kf6 {[%emt 0:00:30]} 23. a3 {[%emt 0:00:30]} a5 {[%emt 0:00:30]} 24. f4 {[%emt 0:00:30]} b6 {[%emt 0:00:30]} 25. b3 {[%emt 0:00:30]} Rd7 {[%emt 0:00:30]} 26. Bd3 {[%emt 0:00:30]} Rd8 {[%emt 0:00:30]} 27. Rb1 {[%emt 0:00:30]} Ra8 {[%emt 0:00:30]} 28. Be2 {[%emt 0:00:30]} Ke7 {[%emt 0:00:30]} 29. Bf3 {[%emt 0:00:30]} Ra7 {[%emt 0:00:30]} 30. Re1 {[%emt 0:00:30]} Rd7 {[%emt 0:00:30]} 31. Re5 {[%emt 0:00:30]} Kf6 {[%emt 0:00:30]} 32. Be2 {[%emt 0:00:30]} Ra7 {[%emt 0:00:30]} 33. Bf3 {[%emt 0:00:30]} Rd7 {[%emt 0:00:30]} 34. b4 {[%emt 0:00:30]} axb4+ {[%emt 0:00:30]} 35. axb4 {[%emt 0:00:30]} Rd4 {[%emt 0:00:30]} 36. Be2 {[%emt 0:00:30]} Re4 {[%emt 0:00:30]} 37. bxc5 {[%emt 0:00:30]} bxc5 {[%emt 0:00:30]} 38. Rxe4 {[%emt 0:00:30]} fxe4 {[%emt 0:00:30]} 39. Kd2 {[%emt 0:00:30]} Kg6 {[%emt 0:00:30]} 40. g4 {[%emt 0:00:30]} f5 {[%emt 0:00:30]} 41. gxf5+ {[%emt 0:00:30]} Kxf5 {[%emt 0:00:30]} 42. Ke3 {[%emt 0:00:30]} Bf7 {[%emt 0:00:30]} 43. Bf1 {[%emt 0:00:30]} Bg8 {[%emt 0:00:30]} 44. Bg2 {[%emt 0:00:30]} Bxc4 {[%emt 0:00:30]} 45. Bxe4+ {[%emt 0:00:30]} Kf6 {[%emt 0:00:30]} 46. Bxh7 {[%emt 0:00:30]} Be6 {[%emt 0:00:30]} 47. Be4 {[%emt 0:00:30]} Bh3 {[%emt 0:00:30]} 48. Kd2 {[%emt 0:00:30]} Ke6 {[%emt 0:00:30]} 49. Kc3 {[%emt 0:00:30]} Ke7 {[%emt 0:00:30]} 50. Kd3 {[%emt 0:00:30]} Ke6 {[%emt 0:00:30]} 51. Bb7 {[%emt 0:00:30]} Kf6 {[%emt 0:00:30]} 52. Bd5 {[%emt 0:00:30]} Bf1+ {[%emt 0:00:30]} 53. Ke3 {[%emt 0:00:30]} Bh3 {[%emt 0:00:30]} 54. Bc4 {[%emt 0:00:30]} Kf5 {[%emt 0:00:30]} 55. Kf3 {[%emt 0:00:30]} Kf6 {[%emt 0:00:30]} 56. Kg3 {[%emt 0:00:30]} Bf5 {[%emt 0:00:30]} 57. h4 {[%emt 0:00:30]} Bg6 {[%emt 0:00:30]} 58. Kf3 {[%emt 0:00:30]} Ke7 {[%emt 0:00:30]} 59. Bd5 {[%emt 0:00:30]} Kf6 {[%emt 0:00:30]} 60. Kf2 {[%emt 0:00:30]} Kf5 {[%emt 0:00:30]} 61. Kg3 {[%emt 0:00:30]} Kf6 {[%emt 0:00:30]} 62. Kg4 {[%emt 0:00:30]} Bd3 {[%emt 0:00:30]} 63. Kf3 {[%emt 0:00:30]} Bg6 {[%emt 0:00:30]} 64. Ke3 {[%emt 0:00:30]} Bh5 {[%emt 0:00:30]} 65. Bf3 {[%emt 0:00:30]} Bg6 {[%emt 0:00:30]} 66. h5 {[%emt 0:00:30]} Bf7 {[%emt 0:00:30]} 67. h6 {[%emt 0:00:30]} Be6 {[%emt 0:00:30]} 68. Be4 {[%emt 0:00:30]} Bc4 {[%emt 0:00:30]} 69. f5 {[%emt 0:00:30]} Bg8 {[%emt 0:00:30]} 70. Kf4 {[%emt 0:00:30]} c4 {[%emt 0:00:30]} 71. Bb1 {[%emt 0:00:30]} c3 {[%emt 0:00:30]} 72. Bc2 {[%emt 0:00:30]} Bh7 {[%emt 0:00:30]} 73. Kg4 {[%emt 0:00:30]} Bg8 {[%emt 0:00:30]} 74. Kf4 {[%emt 0:00:30]} Bh7 {[%emt 0:00:30]} 75. Ke3 {[%emt 0:00:30]} Kg5 {[%emt 0:00:30]} 76. f6 {[%emt 0:00:30]} Kxf6 {[%emt 0:00:30]} 77. Bxh7 {[%emt 0:00:30]} Kg5 {[%emt 0:00:30]} 78. Kd3 {[%emt 0:00:30]} Kf6 {[%emt 0:00:30]} 1/2-1/2

[Event "CCCSA IM Norm C 2019"]
[Site "Charlotte"]
[Date "2019.06.09"]
[Round "7.4"]
[White "Ludwig, John"]
[Black "Bregadze, Levan"]
[Result "1/2-1/2"]
[ECO "B53"]
[WhiteElo "2374"]
[BlackElo "2462"]
[Annotator "RC"]
[PlyCount "38"]
[EventDate "2019.06.05"]
[EventType "tourn"]
[EventCountry "USA"]
[SourceTitle "playchess.com"]
[Source "ChessBase"]
[SourceQuality "1"]
[TimeControl "5400+30"]

1. e4 {[%emt 1:30:30]} c5 {[%emt 1:30:30]} 2. Nf3 {[%emt 0:00:30]} d6 {[%emt 0:00:30]} 3. d4 {[%emt 0:00:30]} cxd4 {[%emt 0:00:30]} 4. Qxd4 {[%emt 0:00:30]} Nc6 {[%emt 0:00:30]} 5. Bb5 {[%emt 0:00:30]} Bd7 {[%emt 0:00:30]} 6. Bxc6 {[%emt 0:00:30]} Bxc6 {[%emt 0:00:30]} 7. Nc3 {[%emt 0:00:30]} a6 {[%emt 0:00:30]} 8. Bg5 {[%emt 0:00:30]} h6 {[%emt 0:00:30]} 9. Bh4 {[%emt 0:00:30]} e5 {[%emt 0:00:30]} 10. Qe3 {[%emt 0:00:30]} g5 {[%emt 0:00:30]} 11. Bg3 {[%emt 0:00:30]} Nf6 {[%emt 0:00:30]} 12. h4 {[%emt 0:00:30]} g4 {[%emt 0:00:30]} 13. Nd2 {[%emt 0:00:30]} b5 {[%emt 0:00:30]} 14. a3 {[%emt 0:00:30]} Be7 {[%emt 0:00:30]} 15. Nf1 {[%emt 0:00:30]} a5 {[%emt 0:00:30]} 16. Qd3 {[%emt 0:00:30]} b4 {[%emt 0:00:30]} 17. Nd5 {[%emt 0:00:30]} Nxd5 {[%emt 0:00:30]} 18. exd5 {[%emt 0:00:30]} Bd7 {[%emt 0:00:30]} 19. Ne3 {[%emt 0:00:30]} Qc8 {[%emt 0:00:30]} 1/2-1/2

[Event "CCCSA IM Norm C 2019"]
[Site "Charlotte"]
[Date "2019.06.09"]
[Round "7.5"]
[White "Balleisen, Aaron"]
[Black "Martin Del Campo C., Roberto"]
[Result "1-0"]
[ECO "A36"]
[WhiteElo "2203"]
[BlackElo "2311"]
[Annotator "RC"]
[PlyCount "95"]
[EventDate "2019.06.05"]
[EventType "tourn"]
[EventCountry "USA"]
[SourceTitle "playchess.com"]
[Source "ChessBase"]
[SourceQuality "1"]
[TimeControl "5400+30"]

1. c4 {[%emt 1:30:30]} g6 {[%emt 1:30:30]} 2. g3 {[%emt 0:00:30]} Bg7 {[%emt 0:00:30]} 3. Bg2 {[%emt 0:00:30]} d6 {[%emt 0:00:30]} 4. Nc3 {[%emt 0:00:30]} Nf6 {[%emt 0:00:30]} 5. e4 {[%emt 0:00:30]} c5 {[%emt 0:00:30]} 6. Nge2 {[%emt 0:00:30]} Nc6 {[%emt 0:00:30]} 7. O-O {[%emt 0:00:30]} O-O {[%emt 0:00:30]} 8. d3 {[%emt 0:00:30]} Ne8 {[%emt 0:00:30]} 9. Be3 {[%emt 0:00:30]} Nc7 {[%emt 0:00:30]} 10. d4 {[%emt 0:00:30]} b6 {[%emt 0:00:30]} 11. d5 {[%emt 0:00:30]} Na5 {[%emt 0:00:30]} 12. b3 {[%emt 0:00:30]} a6 {[%emt 0:00:30]} 13. Qd3 {[%emt 0:00:30]} b5 {[%emt 0:00:30]} 14. Rab1 {[%emt 0:00:30]} Bd7 {[%emt 0:00:30]} 15. a3 {[%emt 0:00:30]} Rb8 {[%emt 0:00:30]} 16. Rfc1 {[%emt 0:00:30]} e6 {[%emt 0:00:30]} 17. Nd1 {[%emt 0:00:30]} exd5 {[%emt 0:00:30]} 18. cxd5 {[%emt 0:00:30]} Re8 {[%emt 0:00:30]} 19. b4 {[%emt 0:00:30]} c4 {[%emt 0:00:30]} 20. Qc2 {[%emt 0:00:30]} Nb3 {[%emt 0:00:30]} 21. Rxb3 {[%emt 0:00:30]} cxb3 {[%emt 0:00:30]} 22. Qxb3 {[%emt 0:00:30]} Na8 {[%emt 0:00:30]} 23. Nd4 {[%emt 0:00:30]} Nb6 {[%emt 0:00:30]} 24. Nc6 {[%emt 0:00:30]} Bxc6 {[%emt 0:00:30]} 25. dxc6 {[%emt 0:00:30]} Nc4 {[%emt 0:00:30]} 26. Rxc4 {[%emt 0:00:30]} bxc4 {[%emt 0:00:30]} 27. Qxc4 {[%emt 0:00:30]} Qf6 {[%emt 0:00:30]} 28. Qxa6 {[%emt 0:00:30]} Ra8 {[%emt 0:00:30]} 29. Qd3 {[%emt 0:00:30]} Qa1 {[%emt 0:00:30]} 30. b5 {[%emt 0:00:30]} Rxa3 {[%emt 0:00:30]} 31. Qxd6 {[%emt 0:00:30]} Bf8 {[%emt 0:00:30]} 32. Qd7 {[%emt 0:00:30]} Qb1 {[%emt 0:00:30]} 33. Bf3 {[%emt 0:00:30]} Re7 {[%emt 0:00:30]} 34. Qc8 {[%emt 0:00:30]} Rxe3 {[%emt 0:00:30]} 35. fxe3 {[%emt 0:00:30]} Qxb5 {[%emt 0:00:30]} 36. Nc3 {[%emt 0:00:30]} Qb2 {[%emt 0:00:30]} 37. Ne2 {[%emt 0:00:30]} Ra7 {[%emt 0:00:30]} 38. Kf2 {[%emt 0:00:30]} Kg7 {[%emt 0:00:30]} 39. Qd8 {[%emt 0:00:30]} Qe5 {[%emt 0:00:30]} 40. Qd4 {[%emt 0:00:30]} Re7 {[%emt 0:00:30]} 41. Nf4 {[%emt 0:00:30]} Kh6 {[%emt 0:00:30]} 42. Nd5 {[%emt 0:00:30]} Qxd4 {[%emt 0:00:30]} 43. exd4 {[%emt 0:00:30]} Re6 {[%emt 0:00:30]} 44. c7 {[%emt 0:00:30]} Rc6 {[%emt 0:00:30]} 45. e5 {[%emt 0:00:30]} f5 {[%emt 0:00:30]} 46. Be2 {[%emt 0:00:30]} Ba3 {[%emt 0:00:30]} 47. Ba6 {[%emt 0:00:30]} Rc2+ {[%emt 0:00:30]} 48. Ke3 {[%emt 0:00:30]} 1-0

[Event "CCCSA IM Norm C 2019"]
[Site "Charlotte"]
[Date "2019.06.09"]
[Round "8.1"]
[White "Adamson, Robby"]
[Black "Balleisen, Aaron"]
[Result "1/2-1/2"]
[ECO "B22"]
[WhiteElo "2238"]
[BlackElo "2203"]
[Annotator "NA"]
[PlyCount "144"]
[EventDate "2019.06.05"]
[EventType "tourn"]
[EventCountry "USA"]
[SourceTitle "playchess.com"]
[Source "ChessBase"]
[SourceQuality "1"]
[TimeControl "5400+30"]

1. e4 {[%emt 1:30:30]} c5 {[%emt 1:30:30]} 2. Nf3 {[%emt 0:00:30]} a6 {[%emt 0:00:30]} 3. c3 {[%emt 0:00:30]} d5 {[%emt 0:00:30]} 4. exd5 {[%emt 0:00:30]} Qxd5 {[%emt 0:00:30]} 5. d4 {[%emt 0:00:30]} Nf6 {[%emt 0:00:30]} 6. Be3 {[%emt 0:00:30]} cxd4 {[%emt 0:00:30]} 7. cxd4 {[%emt 0:00:30]} e6 {[%emt 0:00:30]} 8. a3 {[%emt 0:00:30]} Be7 {[%emt 0:00:30]} 9. Nc3 {[%emt 0:00:30]} Qd6 {[%emt 0:00:30]} 10. Bd3 {[%emt 0:00:30]} O-O {[%emt 0:00:30]} 11. O-O {[%emt 0:00:30]} Nc6 {[%emt 0:00:30]} 12. Qe2 {[%emt 0:00:30]} Bd7 {[%emt 0:00:30]} 13. Rad1 {[%emt 0:00:30]} Rfd8 {[%emt 0:00:30]} 14. Rfe1 {[%emt 0:00:30]} h6 {[%emt 0:00:30]} 15. Bc1 {[%emt 0:00:30]} Rac8 {[%emt 0:00:30]} 16. Bb1 {[%emt 0:00:30]} Nd5 {[%emt 0:00:30]} 17. Nxd5 {[%emt 0:00:30]} Qxd5 {[%emt 0:00:30]} 18. Be4 {[%emt 0:00:30]} Qb5 {[%emt 0:00:30]} 19. Bd3 {[%emt 0:00:30]} Qh5 {[%emt 0:00:30]} 20. Qe4 {[%emt 0:00:30]} f5 {[%emt 0:00:30]} 21. Qe2 {[%emt 0:00:30]} Bf6 {[%emt 0:00:30]} 22. Bc4 {[%emt 0:00:30]} Kh8 {[%emt 0:00:30]} 23. Ba2 {[%emt 0:00:30]} Re8 {[%emt 0:00:30]} 24. Bf4 {[%emt 0:00:30]} Ne7 {[%emt 0:00:30]} 25. Be5 {[%emt 0:00:30]} Nd5 {[%emt 0:00:30]} 26. Bxd5 {[%emt 0:00:30]} exd5 {[%emt 0:00:30]} 27. Qd2 {[%emt 0:00:30]} Ba4 {[%emt 0:00:30]} 28. Rc1 {[%emt 0:00:30]} Rxc1 {[%emt 0:00:30]} 29. Rxc1 {[%emt 0:00:30]} Bc6 {[%emt 0:00:30]} 30. Re1 {[%emt 0:00:30]} Kh7 {[%emt 0:00:30]} 31. h3 {[%emt 0:00:30]} Qf7 {[%emt 0:00:30]} 32. Qf4 {[%emt 0:00:30]} Bd8 {[%emt 0:00:30]} 33. Qd2 {[%emt 0:00:30]} Re6 {[%emt 0:00:30]} 34. Qc2 {[%emt 0:00:30]} Qg6 {[%emt 0:00:30]} 35. Kh2 {[%emt 0:00:30]} f4 {[%emt 0:00:30]} 36. Qd2 {[%emt 0:00:30]} Qf5 {[%emt 0:00:30]} 37. Qxf4 {[%emt 0:00:30]} Qxf4+ {[%emt 0:00:30]} 38. Bxf4 {[%emt 0:00:30]} Rxe1 {[%emt 0:00:30]} 39. Nxe1 {[%emt 0:00:30]} g5 {[%emt 0:00:30]} 40. Be3 {[%emt 0:00:30]} Bc7+ {[%emt 0:00:30]} 41. Kg1 {[%emt 0:00:30]} Kg6 {[%emt 0:00:30]} 42. f3 {[%emt 0:00:30]} Bb5 {[%emt 0:00:30]} 43. Kf2 {[%emt 0:00:30]} a5 {[%emt 0:00:30]} 44. g4 {[%emt 0:00:30]} Bc4 {[%emt 0:00:30]} 45. Ng2 {[%emt 0:00:30]} b6 {[%emt 0:00:30]} 46. Bd2 {[%emt 0:00:30]} Bd6 {[%emt 0:00:30]} 47. h4 {[%emt 0:00:30]} Bb3 {[%emt 0:00:30]} 48. Be3 {[%emt 0:00:30]} Kf6 {[%emt 0:00:30]} 49. Bd2 {[%emt 0:00:30]} Bc7 {[%emt 0:00:30]} 50. f4 {[%emt 0:00:30]} gxh4 {[%emt 0:00:30]} 51. Nxh4 {[%emt 0:00:30]} Bd1 {[%emt 0:00:30]} 52. Kg3 {[%emt 0:00:30]} Bc2 {[%emt 0:00:30]} 53. Kf3 {[%emt 0:00:30]} Be4+ {[%emt 0:00:30]} 54. Kf2 {[%emt 0:00:30]} Bd8 {[%emt 0:00:30]} 55. Kg3 {[%emt 0:00:30]} Kg7 {[%emt 0:00:30]} 56. g5 {[%emt 0:00:30]} hxg5 {[%emt 0:00:30]} 57. fxg5 Kf7 {[%emt 0:00:30]} 58. Kg4 {[%emt 0:01:00]} Be7 {[%emt 0:00:30]} 59. Kh5 {[%emt 0:00:30]} Bd3 {[%emt 0:00:30]} 60. Kg4 {[%emt 0:00:30]} Be4 {[%emt 0:00:30]} 61. Kg3 {[%emt 0:00:30]} Bf8 {[%emt 0:00:30]} 62. Bf4 {[%emt 0:00:30]} b5 {[%emt 0:00:30]} 63. Bd2 {[%emt 0:00:30]} b4 {[%emt 0:00:30]} 64. axb4 {[%emt 0:00:30]} axb4 {[%emt 0:00:30]} 65. Kg4 {[%emt 0:00:30]} Ke6 {[%emt 0:00:30]} 66. Kh5 {[%emt 0:00:30]} Bg7 {[%emt 0:00:30]} 67. Be3 {[%emt 0:00:30]} Kf7 {[%emt 0:00:30]} 68. g6+ {[%emt 0:00:30]} Ke6 {[%emt 0:00:30]} 69. Bf2 {[%emt 0:00:30]} Ke7 {[%emt 0:00:30]} 70. Bg1 {[%emt 0:00:30]} Ke6 {[%emt 0:00:30]} 71. Be3 {[%emt 0:00:30]} b3 {[%emt 0:00:30]} 72. Bf2 {[%emt 0:00:30]} Ke7 1/2-1/2

[Event "CCCSA IM Norm C 2019"]
[Site "Charlotte"]
[Date "2019.06.09"]
[Round "8.2"]
[White "Bregadze, Levan"]
[Black "Martin Del Campo C., Roberto"]
[Result "1-0"]
[ECO "E90"]
[WhiteElo "2462"]
[BlackElo "2311"]
[Annotator "ChessBase"]
[PlyCount "69"]
[EventDate "2019.06.05"]
[EventType "tourn"]
[EventCountry "USA"]
[SourceTitle "playchess.com"]
[Source "ChessBase"]
[SourceQuality "1"]
[TimeControl "5400+30"]

1. d4 {[%emt 1:30:30]} Nf6 {[%emt 1:30:30]} 2. c4 {[%emt 0:00:30]} g6 {[%emt 0:00:30]} 3. Nc3 {[%emt 0:00:30]} Bg7 {[%emt 0:00:30]} 4. e4 {[%emt 0:00:30]} d6 {[%emt 0:00:30]} 5. Nf3 {[%emt 0:00:30]} O-O {[%emt 0:00:30]} 6. h3 {[%emt 0:00:30]} e5 {[%emt 0:00:30]} 7. d5 {[%emt 0:00:30]} c6 {[%emt 0:00:30]} 8. Bg5 {[%emt 0:00:30]} a6 {[%emt 0:00:30]} 9. Be2 {[%emt 0:00:30]} cxd5 {[%emt 0:00:30]} 10. cxd5 {[%emt 0:00:30]} b5 {[%emt 0:00:30]} 11. Nd2 {[%emt 0:00:30]} Nbd7 {[%emt 0:00:30]} 12. O-O {[%emt 0:00:30]} h6 {[%emt 0:00:30]} 13. Be3 {[%emt 0:00:30]} Nh7 {[%emt 0:00:30]} 14. Kh1 {[%emt 0:00:30]} f5 {[%emt 0:00:30]} 15. exf5 {[%emt 0:00:30]} gxf5 {[%emt 0:00:30]} 16. f4 {[%emt 0:00:30]} Kh8 {[%emt 0:00:30]} 17. Nf3 {[%emt 0:00:30]} Bb7 {[%emt 0:00:30]} 18. a3 {[%emt 0:00:30]} Rc8 {[%emt 0:00:30]} 19. Qd2 {[%emt 0:00:30]} Nc5 {[%emt 0:00:30]} 20. Rad1 {[%emt 0:00:30]} Ne4 {[%emt 0:00:30]} 21. Nxe4 {[%emt 0:00:30]} fxe4 {[%emt 0:00:30]} 22. Nh2 {[%emt 0:00:30]} exf4 {[%emt 0:00:30]} 23. Bxf4 {[%emt 0:00:30]} Rf5 {[%emt 0:00:30]} 24. Bxh6 {[%emt 0:00:30]} Rxd5 {[%emt 0:00:30]} 25. Bxg7+ {[%emt 0:00:30]} Kxg7 {[%emt 0:00:30]} 26. Qf4 {[%emt 0:00:30]} Rxd1 {[%emt 0:00:30]} 27. Rxd1 {[%emt 0:00:30]} d5 {[%emt 0:00:30]} 28. Ng4 {[%emt 0:00:30]} Qg5 {[%emt 0:00:30]} 29. Qd6 {[%emt 0:00:30]} Rf8 {[%emt 0:00:30]} 30. a4 {[%emt 0:00:30]} Nf6 {[%emt 0:00:30]} 31. Rf1 {[%emt 0:00:30]} Qg6 {[%emt 0:00:30]} 32. Ne5 {[%emt 0:00:30]} Qe8 {[%emt 0:00:30]} 33. Qc7+ {[%emt 0:00:30]} Kg8 {[%emt 0:00:30]} 34. Rf5 {[%emt 0:00:30]} Nh7 {[%emt 0:00:30]} 35. Rh5 {[%emt 0:00:30]} 1-0

[Event "CCCSA IM Norm C 2019"]
[Site "Charlotte"]
[Date "2019.06.09"]
[Round "8.3"]
[White "Jacobson, Aaron"]
[Black "Hevia Alejano, Carlos Antonio"]
[Result "1/2-1/2"]
[ECO "B96"]
[WhiteElo "2302"]
[BlackElo "2481"]
[Annotator "ChessBase"]
[PlyCount "44"]
[EventDate "2019.06.05"]
[EventType "tourn"]
[EventCountry "USA"]
[SourceTitle "playchess.com"]
[Source "ChessBase"]
[SourceQuality "1"]
[TimeControl "5400+30"]

1. e4 {[%emt 1:30:30]} c5 {[%emt 1:30:30]} 2. Nf3 {[%emt 0:00:30]} d6 {[%emt 0:00:30]} 3. d4 {[%emt 0:00:30]} cxd4 {[%emt 0:00:30]} 4. Nxd4 {[%emt 0:00:30]} Nf6 {[%emt 0:00:30]} 5. Nc3 {[%emt 0:00:30]} a6 {[%emt 0:00:30]} 6. Bg5 {[%emt 0:00:30]} e6 {[%emt 0:00:30]} 7. f4 {[%emt 0:00:30]} Qc7 {[%emt 0:00:30]} 8. Qe2 {[%emt 0:00:30]} Nbd7 {[%emt 0:00:30]} 9. O-O-O {[%emt 0:00:30]} Be7 {[%emt 0:00:30]} 10. g4 {[%emt 0:00:30]} b5 {[%emt 0:00:30]} 11. a3 {[%emt 0:00:30]} Bb7 {[%emt 0:00:30]} 12. Bxf6 {[%emt 0:00:30]} gxf6 {[%emt 0:00:30]} 13. h4 {[%emt 0:00:30]} Nb6 {[%emt 0:00:30]} 14. Kb1 {[%emt 0:00:30]} h6 {[%emt 0:00:30]} 15. Rg1 {[%emt 0:00:30]} Qc5 {[%emt 0:00:30]} 16. Rg3 {[%emt 0:00:30]} Nc4 {[%emt 0:00:30]} 17. Nb3 {[%emt 0:00:30]} Qb6 {[%emt 0:00:30]} 18. Bh3 {[%emt 0:00:30]} Bc8 {[%emt 0:00:30]} 19. f5 Bd7 {[%emt 0:00:30]} 20. fxe6 fxe6 21. Nd4 {[%emt 0:01:30]} Kf7 22. g5 {[%emt 0:00:30]} Ke8 {[%emt 0:01:30]} 1/2-1/2

[Event "CCCSA IM Norm C 2019"]
[Site "Charlotte"]
[Date "2019.06.09"]
[Round "8.4"]
[White "Turgut, Aydin"]
[Black "Wang, Jason"]
[Result "1-0"]
[ECO "B84"]
[WhiteElo "2286"]
[BlackElo "2285"]
[Annotator "NA"]
[PlyCount "53"]
[EventDate "2019.06.05"]
[EventType "tourn"]
[EventCountry "USA"]
[SourceTitle "playchess.com"]
[Source "ChessBase"]
[SourceQuality "1"]
[TimeControl "5400+30"]

1. e4 {[%emt 1:30:30]} c5 {[%emt 1:30:30]} 2. Nf3 {[%emt 0:00:30]} e6 {[%emt 0:00:30]} 3. d4 {[%emt 0:00:30]} cxd4 {[%emt 0:00:30]} 4. Nxd4 {[%emt 0:00:30]} a6 {[%emt 0:00:30]} 5. Be2 {[%emt 0:00:30]} Nf6 {[%emt 0:00:30]} 6. Nc3 {[%emt 0:00:30]} Qc7 {[%emt 0:00:30]} 7. O-O {[%emt 0:00:30]} Be7 {[%emt 0:00:30]} 8. Be3 {[%emt 0:00:30]} O-O {[%emt 0:00:30]} 9. f4 {[%emt 0:00:30]} d6 {[%emt 0:00:30]} 10. Qe1 {[%emt 0:00:30]} b5 {[%emt 0:00:30]} 11. a3 {[%emt 0:00:30]} Bb7 {[%emt 0:00:30]} 12. Bd3 {[%emt 0:00:30]} Nbd7 {[%emt 0:00:30]} 13. Nb3 {[%emt 0:00:30]} e5 {[%emt 0:00:30]} 14. Kh1 {[%emt 0:00:30]} Rfe8 {[%emt 0:00:30]} 15. Rd1 {[%emt 0:00:30]} exf4 {[%emt 0:00:30]} 16. Bxf4 {[%emt 0:00:30]} Bf8 {[%emt 0:00:30]} 17. Qh4 {[%emt 0:00:30]} Ne5 {[%emt 0:00:30]} 18. Bg5 {[%emt 0:00:30]} Ng6 {[%emt 0:00:30]} 19. Qe1 {[%emt 0:00:30]} Nxe4 {[%emt 0:00:30]} 20. Nxe4 {[%emt 0:00:30]} Re5 {[%emt 0:00:30]} 21. Bf4 {[%emt 0:00:30]} Rxe4 {[%emt 0:00:30]} 22. Bxe4 {[%emt 0:00:30]} Re8 {[%emt 0:00:30]} 23. Rd4 {[%emt 0:00:30]} Nxf4 {[%emt 0:00:30]} 24. Rxf4 {[%emt 0:00:30]} Qxc2 {[%emt 0:00:30]} 25. Nd2 {[%emt 0:00:30]} Qc6 {[%emt 0:00:30]} 26. Qh4 {[%emt 0:00:30]} Rxe4 {[%emt 0:00:30]} 27. Rdxe4 {[%emt 0:00:30]} 1-0